Cogmind - Beta 16 @@@ ROGUE MODE // 2025.11.21 @ 20:25:46 Player: shapeshifter Result: Destroyed by Y-64 Sentinel with KE Penetrator Performance ------------- Evolutions (5) 2500 Regions Visited (10) 2000 Robots Destroyed (130) 650 Value Destroyed (4479) 4479 Prototype IDs (22) 440 Alien Tech Used (0) 0 Bonus (940) 940 TOTAL SCORE: 11009 Bonus ------- Follower Combat Kills 622 Registered with UFD 300 Met Optimus in HQ 500 Friendly Fire -482 Cogmind --------- Core Integrity 0/1000 Matter 197/300 Energy 100/100 System Corruption 8% Temperature Cool (0) Movement Core (50) Location -5/Factory Parts ------- > --- POWER (2) -------- (None) > --- PROPULSION (6) --- (None) > --- UTILITY (7) ------ Machine Analyzer Enhanced Optical Array Advanced Signal Interpreter Transport Network Coupler > --- WEAPON (2) ------- (None) > --- INVENTORY (5) ---- Tech Extrapolator Improved Remote Datajack System Spiker (6) LU-1G1's Laser Shovel PL-3XN's Ring of Power Peak State ------------ > --- POWER ------------ Backup Power VII Backup Power VII > --- PROPULSION ------- Antigrav System Antigrav System Backup Propulsion VII Backup Propulsion VII Backup Propulsion VII Backup Propulsion VII > --- UTILITY ---------- Large Storage Unit Deep Structural Scanner Machine Analyzer Enhanced Optical Array Advanced Sensor Array Advanced Signal Interpreter Improved Hacking Suite > --- WEAPON ----------- Remote Datajack Shock Maul > --- INVENTORY -------- Backup Power VII Backup Propulsion VII Improved Heat Sink Energy Well Surveybot 17 Chip Transport Network Coupler Stasis Canceller Improved Reaction Control System Advanced System Shield Tech Extrapolator KN-7UR's Autopenetrator Improved Remote Datajack System Spiker LU-1G1's Laser Shovel PL-3XN's Ring of Power [Rating: 101] Favorites ----------- Power Improved Ion Engine Engine Improved Ion Engine Power Core Nuclear Core Propulsion Advanced Treads Treads Advanced Treads Hover Unit Antigrav System Flight Unit Cooled Cesium-ion Thruster Utility High-capacity Storage Unit Device Cryofiber Web Storage High-capacity Storage Unit Processor Machine Analyzer Hackware Hacking Suite Protection Light Armor Plating Weapon Heavy Particle Cannon Energy Gun KN-7UR's Autopenetrator Energy Cannon Heavy Particle Cannon Ballistic Cannon Assault Cannon Launcher Proton Missile Launcher Special Weapon Remote Datajack Impact Weapon Shock Maul Slashing Weapon Great Axe Special Melee Weapon Datajack Build | -11 -10 -9 -8 -8 -8 -8 -6 -6 -6 -5 ------- Run | Yrd Mat Mat Mat Sto Rec Scr Fac Was Fac Fac Slots Evolved 10 | . . 2 2 . . . 4 . . 2 Power 1 | . . . . . . . . . . 1 Propulsion 4 | . . 1 1 . . . 1 . . 1 Utility 5 | . . 1 1 . . . 3 . . . Weapon . | . . . . . . . . . . . Parts Attached 115 | 7 3 10 5 2 6 15 39 . 6 22 Power 14 | 1 1 1 . . . 3 4 . 2 2 Engine 7 | 1 1 1 . . . 2 2 . . . Core 7 | . . . . . . 1 2 . 2 2 Reactor . | . . . . . . . . . . . Propulsion 33 | 2 . 3 3 . 1 2 10 . 1 11 Treads 15 | 2 . 3 3 . 1 2 4 . . . Leg . | . . . . . . . . . . . Wheel . | . . . . . . . . . . . Hover 10 | . . . . . . . . . . 10 Flight 8 | . . . . . . . 6 . 1 1 Utility 42 | 2 1 4 2 2 1 5 17 . 3 5 Device 14 | 1 . 1 1 . . 3 5 . 1 2 Storage 6 | 1 1 1 . . . . 1 . . 2 Processor 9 | . . . . . . . 7 . 1 1 Hackware 5 | . . . . 1 1 . 2 . 1 . Protection 8 | . . 2 1 1 . 2 2 . . . Artifact . | . . . . . . . . . . . Weapon 26 | 2 1 2 . . 4 5 8 . . 4 Energy Gun 5 | 2 1 . . . 1 . 1 . . . Energy Cannon 9 | . . 2 . . 2 2 3 . . . Ballistic Gun . | . . . . . . . . . . . Ballistic Cannon 1 | . . . . . . 1 . . . . Launcher 1 | . . . . . . . . . . 1 Special Weapon 6 | . . . . . . 1 3 . . 2 Impact Weapon 1 | . . . . . 1 . . . . . Slashing Weapon 1 | . . . . . . . . . . 1 Piercing Weapon . | . . . . . . . . . . . Special Melee Weapon 2 | . . . . . . 1 1 . . . Unidentified Prototypes 9 | . . . . . 2 1 6 . . . Parts Lost 38 | . 1 . . . . 2 11 . 2 22 Power 3 | . . . . . . . . . . 3 Propulsion 22 | . . . . . . 2 6 . 2 12 Utility 7 | . . . . . . . 4 . . 3 Weapon 6 | . 1 . . . . . 1 . . 4 Highest Loss Streak 16 | . 1 . . . . 1 5 . 1 16 To Critical Strikes 1 | . . . . . . . 1 . . . Average Backups 15 | 4 9 14 18 20 17 17 16 13 13 13 Power 1 | . . 1 2 2 2 1 1 1 1 . Propulsion 1 | 2 4 5 3 2 . 1 . . . . Utility 7 | . 4 5 6 9 8 8 8 8 7 8 Weapon 3 | . . 1 6 6 6 4 2 . 1 1 Tool/Special . | . . . . . . . . . . . Unused Backups 41 | . . 5 2 4 1 10 6 . 4 9 Power 2 | . . . . . . . . . 1 1 Propulsion 6 | . . 3 1 . . . 2 . . . Utility 19 | . . 1 1 . 1 4 4 . 2 6 Weapon 10 | . . 1 . 4 . 3 . . 1 1 Tool/Special 4 | . . . . . . 3 . . . 1 Average Slot Usage (%) 95 | . 99 95 96 100 95 98 91 94 92 82 Engine 6 | . 14 11 9 9 9 4 3 . . . Core 2 | . . . . . . 4 2 6 5 7 Treads 27 | . 28 29 34 36 36 36 24 . . . Hover 1 | . . . . . . . . . . 10 Flight 3 | . . . . . . . 5 33 33 15 Device 8 | . 14 11 13 9 . 4 12 6 12 10 Storage 8 | . 14 11 9 9 9 8 6 6 6 4 Processor 5 | . . . . . . . 14 33 24 18 Hackware 6 | . . . . 8 17 9 3 . 1 4 Protection 7 | . . 11 11 9 9 13 6 . . . Energy Gun 5 | . 27 12 . . . 5 3 1 . . Energy Cannon 7 | . . 9 18 18 13 6 4 . . . Ballistic Cannon 1 | . . . . . . 5 . . . . Peak Build Rating 101 | 7 8 21 26 29 35 44 70 77 78 101 Average Rating 39 | 5 7 14 24 28 30 37 58 71 72 75 On Entrance 32 | . 7 8 21 26 29 27 37 69 70 64 Avg Prop Armor Cover (%) 11 | . . . . . . 35 . . . 6 Naked Turns . | . . . . . . . . . . . Heaviest Build 80 | 13 28 64 67 69 68 70 80 36 30 38 Greatest Support 128 | 40 40 65 87 87 88 88 128 39 36 70 Greatest Overweight (x) 3 | . . 1 . . . . 1 1 . 3 Average Overweight (x) . | . . . . . . . . . . . Largest Inventory Capacity 20 | 8 15 20 20 20 20 20 20 15 15 15 Average Capacity 18 | 7 13 17 20 20 20 19 19 15 15 14 Most Carried 20 | 8 11 20 20 20 20 20 20 15 15 15 Average Carried 16 | 4 9 14 18 19 17 18 18 14 14 14 Final Capacity 20 | 8 15 20 20 20 20 20 15 15 15 5 Final Carried 20 | 7 11 20 20 20 19 18 15 15 15 5 Class Distribution -------------------- 42% | Mutant 39% | Commander-Mutant 6% | Assassin 6% | Scout 3% | Derelict-Mutant Dominant Class ---------------- Mutant | -10/Materials Mutant | -9/Materials Mutant | -8/Materials Mutant | -8/Storage Commander-Mutant | -8/Recycling Commander-Mutant | -8/Scraptown Mutant | -6/Factory Scout | -6/Waste Scout | -6/Factory Assassin | -5/Factory Resources | -11 -10 -9 -8 -8 -8 -8 -6 -6 -6 -5 ----------- Run | Yrd Mat Mat Mat Sto Rec Scr Fac Was Fac Fac Matter Collected 2586 | 260 35 100 50 35 100 262 871 122 211 540 Remotely . | . . . . . . . . . . . Salvage Created 6728 | 128 532 224 237 646 256 990 2769 129 165 652 Parts 272 | 7 34 17 10 34 18 43 84 3 . 22 Haulers Intercepted 6 | . . . . . . . 4 . . 2 Recyclers Shooed 10 | 1 . . . . . . 6 . 1 2 Parts Field Recycled . | . . . . . . . . . . . Retrieved Matter . | . . . . . . . . . . . Parts Self-Destructed . | . . . . . . . . . . . Prevented . | . . . . . . . . . . . Parts Restored . | . . . . . . . . . . . Kills | -11 -10 -9 -8 -8 -8 -8 -6 -6 -6 -5 ------- Run | Yrd Mat Mat Mat Sto Rec Scr Fac Was Fac Fac Combat Hostiles Destroyed 87 | . 14 7 4 8 5 15 29 . . 5 Melee 4 | . . . . . . . 1 . . 3 Guns 49 | . 14 1 . . . 15 18 . . 1 Cannons 26 | . . 5 4 8 5 . 4 . . . AOE 1 | . . . . . . . . . . 1 Classes Destroyed 21 | 2 4 1 . 1 . 6 6 1 . . Worker 3 | . 1 . . . . . 1 . . 1 Builder 5 | . . . . . . . 5 . . . Tunneler 3 | 2 1 . . . . . . . . . Hauler 6 | . . . . . . . 4 . . 2 Recycler 9 | 1 . . . 2 . . 4 . 1 1 Mechanic 1 | . . . . . . . 1 . . . Operator 2 | . . . . 2 . . . . . . Watcher 10 | . 3 . 1 1 . . 3 . 1 1 Swarmer 10 | . 5 4 . . . . 1 . . . Grunt 31 | . 9 . 2 3 2 . 14 . . 1 Brawler 1 | . . . . . . 1 . . . . Duelist 3 | . . . . . . . 3 . . . Sentry 16 | . . 3 2 5 3 1 2 . . . Hunter 6 | . . . . . . . 6 . . . Programmer 7 | . . . . . . . 3 . . 4 Federalist 1 | . . . . . . 1 . . . . Explorer 2 | . . . . . . 2 . . . . Ranger 3 | . . . . . . 3 . . . . Guru 2 | . . . . . . 2 . . . . Scrapper 7 | . . . . . . 7 . . . . Martyr 2 | . . . . . . . . 2 . . Best Kill Streak 10 | 2 3 4 3 7 2 10 10 . 1 3 Combat Bots Only 10 | . 3 4 3 3 2 10 3 . . 2 Max Kills in Single Turn 2 | 1 1 1 1 2 2 2 2 1 1 1 Gunslinging . | . . . . . . . . . . . Exploded 1 | . . . . . . . . . . 1 Melee 1 | . . . . . . . 1 . . 1 Uniques/NPCs Destroyed . | . . . . . . . . . . . Combat | -11 -10 -9 -8 -8 -8 -8 -6 -6 -6 -5 -------- Run | Yrd Mat Mat Mat Sto Rec Scr Fac Was Fac Fac Hostile Shots Fired 573 | . 70 29 12 50 1 63 186 . 25 137 Missed 165 | . 21 7 1 17 . 13 54 . 11 41 Hits 408 | . 49 22 11 33 1 50 132 . 14 96 Melee 2 | . . . . . . . . . 2 . Projectile 406 | . 49 22 11 33 1 50 132 . 12 96 AOE 2 | . . . . . . . . . 2 . Critical Strikes 22 | . . 1 1 1 . 3 4 . . 12 Part Disruptions 1 | . . . . . . . . . . 1 Damage Taken 7012 | . 518 226 171 533 179 772 2083 . 317 2213 Core 1492 | . 59 23 . 48 21 89 193 . 52 1007 Absorbed by Shields . | . . . . . . . . . . . Ignored by Resistances 2 | . . . . . . 2 . . . . Regen/Repaired (Parts) 13 | . . . . . . . . 13 . . Core Remaining (%) 82 | 100 76 94 . . . 71 . . 71 . Volleys Fired 325 | 5 54 12 17 32 13 32 153 . . 7 Largest 2 | 2 2 2 2 2 2 1 1 . . 1 Hottest 150 | 80 90 150 150 150 150 120 120 . . 120 Shots Fired 448 | 10 105 24 34 57 22 32 157 . . 7 Gun 207 | 10 105 6 . . . 26 58 . . 2 Cannon 226 | . . 18 34 57 22 6 89 . . . Launcher 2 | . . . . . . . . . . 2 Special 13 | . . . . . . . 10 . . 3 Kinetic 13 | . . . . . . 6 7 . . . Thermal 416 | 10 105 24 34 57 18 26 140 . . 2 Explosive . | . . . . . . . . . . . Electromagnetic 6 | . . . . . 4 . . . . 2 Impact 8 | . . . . . . . 8 . . . Robot Hit Streak 22 | 3 8 6 7 11 10 11 22 . . 16 Robot Miss Streak 6 | 1 3 2 5 2 1 3 6 . . 1 Penetration Max 2 | . . . . . . 1 2 . . 1 Secondary Targets 2 | . 2 . . . . . . . . . Max Gunslinging Chain 1 | . 1 . . . . . . . . . Shots Hit Robots 317 | 7 68 12 17 32 15 27 107 3 2 27 Core Hits 244 | 4 30 6 6 16 6 40 117 1 . 18 Critical Kills 8 | . . 1 . . . . 3 . . 4 Critical Parts Destroyed 10 | . . . . . . . 3 1 2 4 Critical Strikes 20 | . 1 1 . . . . 7 1 2 8 Burn 1 | . 1 . . . . . . . . . Meltdown 4 | . . 1 . . . . 3 . . . Smash 15 | . . . . . . . 4 1 2 8 Melee Attacks 99 | . . . . . . 1 22 4 19 53 Impact 97 | . . . . . . . 21 4 19 53 Slashing . | . . . . . . . . . . . Piercing . | . . . . . . . . . . . Sneak Attacks 9 | . . . . . . 1 . 3 1 4 Combat Hostiles 1 | . . . . . . . . . . 1 Follow-up Attacks . | . . . . . . . . . . . Damage Inflicted 11034 | 71 794 248 475 900 378 976 5132 247 160 1653 Guns 4656 | 71 794 48 . . . 976 2625 . . 142 Cannons 3414 | . . 200 475 900 378 . 1461 . . . Explosions 318 | . . . . . . . 85 . . 233 Melee 2075 | . . . . . . . 390 247 160 1278 Ramming . | . . . . . . . . . . . Kinetic 22 | . . . . . . . 22 . . . Thermal 8111 | 71 794 248 475 900 356 976 4149 . . 142 Explosive . | . . . . . . . . . . . Electromagnetic 255 | . . . . . 22 . . . . 233 Impact 2646 | . . . . . . . 961 247 160 1278 Slashing . | . . . . . . . . . . . Piercing . | . . . . . . . . . . . Highest Corruption 8 | . . . . 1 1 . 4 4 7 8 Average Corruption 2 | . . . . 1 1 . 3 4 4 4 Corruption Purged . | . . . . . . . . . . . Corruption Blocked . | . . . . . . . . . . . Effects 67 | . . . . 6 7 . 32 5 4 13 Message Errors 19 | . . . . 1 1 . 13 2 1 1 Matter Fused 15 | . . . . 2 3 . 6 1 1 2 Heat Flow Errors 9 | . . . . 1 . . 3 . 1 4 Energy Discharges 11 | . . . . 2 2 . 3 1 . 3 Parts Rejected 2 | . . . . . . . . 1 . 1 Parts Fused 1 | . . . . . . . . . 1 . Data Loss (minor) 1 | . . . . . . . 1 . . . Data Loss (major) 5 | . . . . . 1 . 2 . . 2 Misfires 4 | . . . . . . . 4 . . . Overload Shots . | . . . . . . . . . . . Overflow Damage 1205 | . . 10 35 2 . . 441 156 160 401 Projectiles 319 | . . 10 35 2 . . 272 . . . Explosions . | . . . . . . . . . . . Melee 886 | . . . . . . . 169 156 160 401 Knockbacks 4 | . . . . . . . 2 1 1 . Impact 4 | . . . . . . . 2 1 1 . Kinetic . | . . . . . . . . . . . Secondary . | . . . . . . . . . . . Self-Inflicted Damage 40 | . . . . . . . . . . 40 Shots 2 | . . . . . . . . . . 2 Rammed . | . . . . . . . . . . . Targets Rammed . | . . . . . . . . . . . Kicked . | . . . . . . . . . . . Crushed . | . . . . . . . . . . . Highest Temperature 424 | 36 264 162 270 261 261 372 424 37 233 272 Average Temperature 87 | 19 86 60 83 59 85 155 131 17 57 90 Received Heat Transfer 1845 | . 222 45 90 207 99 423 396 . 18 345 Effects 3 | . 1 . . 1 . 1 . . . . Shutdowns 1 | . . . . . . 1 . . . . Energy Bleed 1 | . . . . 1 . . . . . . Interference 1 | . 1 . . . . . . . . . Siege Activations . | . . . . . . . . . . . Martial Activations . | . . . . . . . . . . . Shielding Activations . | . . . . . . . . . . . Robots Disrupted . | . . . . . . . . . . . Combat Hostiles . | . . . . . . . . . . . Robots Corrupted 10 | . . . . . . . 5 1 1 3 Combat Hostiles 2 | . . . . . . . 2 . . . Parts Fried 14 | . . . . . . . 7 2 3 2 Impact Corruptions 32 | . . . . . . . 12 2 5 13 Robots Melted 5 | . . 1 . . . . 4 . . . Combat Hostiles 5 | . . 1 . . . . 4 . . . Parts Melted 41 | . 3 1 . 1 . 7 28 . . 1 Heat Transferred 14602 | 175 1944 420 703 1332 518 1485 7725 . . 300 Parts Sabotaged . | . . . . . . . . . . . Parts Stolen . | . . . . . . . . . . . Parts Stripped . | . . . . . . . . . . . Power Chain Reactions . | . . . . . . . . . . . Alert | -11 -10 -9 -8 -8 -8 -8 -6 -6 -6 -5 ------- Run | Yrd Mat Mat Mat Sto Rec Scr Fac Was Fac Fac Maximum Alert Level 1 | . . . . . . . 1 . . . Low Security (%) 90 | 100 100 100 100 100 100 . 60 100 100 100 Level 1 9 | . . . . . . . 39 . . . Level 2 . | . . . . . . . . . . . Level 3 . | . . . . . . . . . . . Level 4 . | . . . . . . . . . . . Level 5 . | . . . . . . . . . . . High Security . | . . . . . . . . . . . Max Security . | . . . . . . . . . . . Peak Influence 327 | 10 70 89 69 84 173 . 327 103 127 65 Initial 102 | . . . 22 3 . . . 102 15 33 Average 64 | . 23 29 34 19 61 . 172 66 33 11 Influence Increases 3260 | 15 390 201 118 291 451 . 1069 30 277 418 Destroy 0b10 Robot/C 1620 | . 280 140 80 160 140 . 580 . 140 100 Destroy 0b10 Robot/NC 195 | 15 25 . 5 25 . . 90 . 10 25 Destroy Leader 362 | . 46 40 22 62 . . 144 . 22 26 Allied During Kill 131 | . . . . . 119 . . . 12 . Successful Hack 90 | . 9 12 . . 8 . 16 . 10 35 Select Force Hacks 210 | . . . . . 180 . 30 . . . Disable Machine 165 | . . . . 30 . . 60 . 30 45 Destroy Structure 187 | . . 9 11 14 4 . 59 30 8 52 Partial Spotted 45 | . . . . . . . 15 . 15 15 Lose Combat Pursuer 255 | . 30 . . . . . 75 . 30 120 Influence Decreases 3207 | 15 390 146 165 299 451 . 775 302 230 434 Entered New Map 273 | . . . 33 5 . . . 192 7 36 Time Decay 2439 | 15 390 146 132 294 451 . 515 110 113 273 Lost Part 245 | . . . . . . . 110 . 20 115 Lost Ally 100 | . . . . . . . . . 90 10 Purge Threat 150 | . . . . . . . 150 . . . Squads Dispatched 36 | . 2 . . 4 . . 17 . 9 4 Investigation 14 | . 1 . . . . . 7 . 5 1 Extermination 7 | . . . . . . . 4 . 1 2 Reinforcement 7 | . 1 . . 1 . . 2 . 2 1 Assault . | . . . . . . . . . . . Garrison 8 | . . . . 3 . . 4 . 1 . Intercept . | . . . . . . . . . . . Searches Triggered . | . . . . . . . . . . . Construction Impeded . | . . . . . . . . . . . Haulers Reinforced 2 | . . . . . . . 2 . . . Active Scanning Responses . | . . . . . . . . . . . Cargo Convoy Interrupts . | . . . . . . . . . . . Stealth | -11 -10 -9 -8 -8 -8 -8 -6 -6 -6 -5 --------- Run | Yrd Mat Mat Mat Sto Rec Scr Fac Was Fac Fac Distress Signals 6 | . . . 1 1 . . 1 . 2 1 Communications Jammed . | . . . . . . . . . . . Distress Signals . | . . . . . . . . . . . Times Spotted 176 | . 21 7 5 23 7 23 44 8 17 21 Peak Tracking Total 11 | . 4 3 2 3 1 5 5 6 11 8 Tactical Retreats 9 | . 1 . . . 1 . 2 1 1 3 Traps | -11 -10 -9 -8 -8 -8 -8 -6 -6 -6 -5 ------- Run | Yrd Mat Mat Mat Sto Rec Scr Fac Was Fac Fac Traps Triggered 9 | . 1 . . . . . 3 . 2 3 Indirectly . | . . . . . . . . . . . Trap Hack Attempts . | . . . . . . . . . . . Triggered . | . . . . . . . . . . . Disarmed . | . . . . . . . . . . . Reprogrammed . | . . . . . . . . . . . Reused . | . . . . . . . . . . . Traps Extracted . | . . . . . . . . . . . Installed . | . . . . . . . . . . . Triggered . | . . . . . . . . . . . Machines | -11 -10 -9 -8 -8 -8 -8 -6 -6 -6 -5 ---------- Run | Yrd Mat Mat Mat Sto Rec Scr Fac Was Fac Fac Machines Disabled 16 | . . . . 2 . 5 4 . 2 3 Max in Single Turn 1 | . . . . 1 . 1 1 . 1 1 Machines Repaired . | . . . . . . . . . . . Machines Dismantled . | . . . . . . . . . . . Machines Sabotaged . | . . . . . . . . . . . Overloaded Fab Kills . | . . . . . . . . . . . Hacking | -11 -10 -9 -8 -8 -8 -8 -6 -6 -6 -5 --------- Run | Yrd Mat Mat Mat Sto Rec Scr Fac Was Fac Fac Machines Accessed 69 | . 6 5 . 7 12 4 16 . 11 8 Terminals 36 | . 5 4 . 7 6 . 7 . 2 5 Fabricators 4 | . . . . . . . 1 . 2 1 Repair Stations . | . . . . . . . . . . . Recycling Units 19 | . 1 . . . 6 . 6 . 5 1 Scanalyzers 5 | . . 1 . . . . 1 . 2 1 Garrison Access 1 | . . . . . . . 1 . . . Total Hacks 195 | . 17 16 . 17 30 31 43 . 25 16 Successful 102 | . 6 4 . 7 20 31 14 . 11 9 Failed 92 | . 11 12 . 10 10 . 28 . 14 7 Catastrophic 15 | . 3 2 . 1 1 . 5 . 2 1 Database Lockouts 1 | . . . . . . . 1 . . . Manual 89 | . 12 12 . 14 20 . 18 . 6 7 Terminals 94 | . 15 11 . 17 15 . 21 . 4 11 Fabricators 5 | . . . . . . . 1 . 3 1 Repair Stations . | . . . . . . . . . . . Recycling Units 51 | . 2 . . . 15 . 16 . 15 3 Scanalyzers 12 | . . 5 . . . . 3 . 3 1 Garrison Access 2 | . . . . . . . 2 . . . Terminal Hacks 50 | . 1 1 . 2 4 31 5 . 2 4 Record 22 | . . . . . . 22 . . . . Robot Analysis 8 | . . . . . . 8 . . . . Prototype ID Bank 1 | . . . . . . . . . 1 . Open Door 1 | . . . . 1 . . . . . . Branch Access Points 1 | . . . . . . . . . . 1 Emergency Access Points 1 | . . . . . . . . . 1 . Terminal Index 1 | . . . . . 1 . . . . . Unreport Threat 1 | . . . . . . . 1 . . . Locate Traps 1 | . . . . . . . . . . 1 Hauler Manifests 1 | . . . . . . . 1 . . . Zone Layout 11 | . 1 1 . 1 3 . 3 . . 2 Proto ID Catalog 1 | . . . . . . 1 . . . . Fabricator Hacks 2 | . . . . . . . . . 1 1 Network Status 1 | . . . . . . . . . 1 . Build 1 | . . . . . . . . . . 1 Repair Station Hacks . | . . . . . . . . . . . Recycling Unit Hacks 11 | . . . . . 5 . 3 . 3 . Retrieve Components 11 | . . . . . 5 . 3 . 3 . Scanalyzer 5 | . . 2 . . . . 1 . 1 1 Retrieve Study 5 | . . 2 . . . . 1 . 1 1 Garrison Access Hacks . | . . . . . . . . . . . Unauthorized Hacks 34 | . 5 1 . 5 11 . 5 . 4 3 Terminals 18 | . 5 1 . 5 5 . . . . 2 Assimilate 1 | . . . . . . . . . . 1 Botnet 1 | . . . . . . . . . . 1 Skim 16 | . 5 1 . 5 5 . . . . . Fabricators . | . . . . . . . . . . . Repair Stations . | . . . . . . . . . . . Recycling Units 15 | . . . . . 6 . 4 . 4 1 Tunnel 6 | . . . . . 6 . . . . . Fedlink 9 | . . . . . . . 4 . 4 1 Scanalyzers 1 | . . . . . . . 1 . . . Extract 1 | . . . . . . . 1 . . . Garrison Access . | . . . . . . . . . . . Data Cores Recovered . | . . . . . . . . . . . Used . | . . . . . . . . . . . Hacking Detections 57 | . 5 5 . 6 9 . 15 . 10 7 Full Trace Events 3 | . . . . . . . 2 . 1 . Feedback Events 1 | . . . . . . . 1 . . . Corruption 1 | . . . . . . . 1 . . . Feedback Blocked . | . . . . . . . . . . . Robot Schematics Acquired . | . . . . . . . . . . . Robots Built . | . . . . . . . . . . . Authchips . | . . . . . . . . . . . Time . | . . . . . . . . . . . Total Robot Build Rating . | . . . . . . . . . . . Part Schematics Acquired 5 | . . . . . . . 5 . . . Parts Built 2 | . . . . . . . . . . 2 Authchips . | . . . . . . . . . . . Time 46 | . . . . . . . . . . 46 Total Part Build Rating 18 | . . . . . . . . . . 18 Part Studies Acquired 5 | . . 2 . . . . 1 . 1 1 Parts Repaired . | . . . . . . . . . . . Time . | . . . . . . . . . . . Parts Recycled . | . . . . . . . . . . . Recycled Matter . | . . . . . . . . . . . Retrieved Matter . | . . . . . . . . . . . Retrieved Components 33 | . . . . . 20 . 10 . 3 . Parts Scanalyzed . | . . . . . . . . . . . Part Schematics Acquired . | . . . . . . . . . . . Parts Damaged . | . . . . . . . . . . . Bothacking | -11 -10 -9 -8 -8 -8 -8 -6 -6 -6 -5 ------------ Run | Yrd Mat Mat Mat Sto Rec Scr Fac Was Fac Fac Used RIF Installer . | . . . . . . . . . . . Robots Hacked 1 | . . . . . . 1 . . . . Non-combat . | . . . . . . . . . . . Combat 1 | . . . . . . 1 . . . . Robot Hacks Applied 1 | . . . . . . 1 . . . . parse_system 1 | . . . . . . 1 . . . . Relay Couplers Released . | . . . . . . . . . . . Fabnet Peak Effective % . | . . . . . . . . . . . Robots Rewired 9 | . . . . . 9 . . . . . Allies Hacked . | . . . . . . . . . . . Hacks Repelled . | . . . . . . . . . . . Allies | -11 -10 -9 -8 -8 -8 -8 -6 -6 -6 -5 -------- Run | Yrd Mat Mat Mat Sto Rec Scr Fac Was Fac Fac Total Allies 50 | . . . . 10 9 . . 18 . 13 Largest Group 19 | . . . . 10 19 19 . 18 14 8 Highest-Rated Group 638 | . . . . 173 311 311 . 638 488 152 Highest-Rated Ally 50 | . . . . 29 29 29 . 50 46 31 Total Orders 20 | . . . . . 3 17 . . . . STAY 6 | . . . . . 1 5 . . . . ROAM 1 | . . . . . 1 . . . . . FOLLOW 11 | . . . . . 1 10 . . . . AID 2 | . . . . . . 2 . . . . Ally Attacks 311 | . . . . . 11 147 . 96 57 . Total Damage 6420 | . . . . . 169 1752 . 3280 1219 . Kills 41 | . . . . . 2 22 . 8 9 . Allies Corrupted 1 | . . . . . . . . 1 . . Allies Melted 4 | . . . . . . 4 . . . . Intel | -11 -10 -9 -8 -8 -8 -8 -6 -6 -6 -5 ------- Run | Yrd Mat Mat Mat Sto Rec Scr Fac Was Fac Fac Active Infowar (turns) 5410 | 7 1182 359 168 94 . . 1971 222 284 1123 Optics 3014 | . . . . . . . 1385 222 284 1123 Sensors 1526 | . . . . . . . 10 192 275 1049 Structural 1368 | . . . . . . . 65 30 228 1045 Seismic 1810 | 7 1182 359 168 94 . . . . . . T.N.C. 862 | . . . . . . . 659 . . 203 Machine Analysis 3538 | . . . . . . . 1909 222 284 1123 Robot Analysis Total 8 | . . . . . . 8 . . . . Derelict Logs Recovered . | . . . . . . . . . . . Drone Launches . | . . . . . . . . . . . Drone Recoveries . | . . . . . . . . . . . Exploration | -11 -10 -9 -8 -8 -8 -8 -6 -6 -6 -5 ------------- Run | Yrd Mat Mat Mat Sto Rec Scr Fac Was Fac Fac Turns Passed 11565 | 152 1182 658 285 1248 1344 3052 2015 222 284 1123 Spaces Moved 7135 | 85 403 327 145 606 685 1704 1065 305 736 1074 Core 162 | 17 . . . . . 70 . . . 75 Treads 4600 | 68 403 327 145 606 685 1634 732 . . . Legs . | . . . . . . . . . . . Wheels . | . . . . . . . . . . . Hover 435 | . . . . . . . . . . 435 Flight 1938 | . . . . . . . 333 305 736 564 Fastest Speed 12 | 50 160 155 152 152 145 50 24 14 12 20 Average Speed 116 | 138 160 158 153 152 145 141 131 29 22 78 Slowest Speed 320 | 160 160 213 156 152 152 151 240 102 24 320 Overloaded Moves 187 | . . . . . . . . 6 51 130 Propulsion Burnouts . | . . . . . . . . . . . Robots Hopped 3 | . . . . . . . . . 3 . Potential Cave-ins . | . . . . . . . . . . . Cave-ins Triggered . | . . . . . . . . . . . Exploration Rate (%) 53 | 6 84 31 15 82 94 85 37 95 29 35 Regions Visited 10 Branch Regions 3 Pre-discovered Areas 21 | . 2 . . 4 10 4 1 . . . Known Exits Taken 4 | . . . . 1 1 1 . . 1 . Unknown Exits Taken 4 | 1 1 1 1 . . . . . . . Scrap Searched 5 | . . . . . . 5 . . . . Spaces Dug 63 | . . . . 2 . 3 24 1 8 25 Terrain Destroyed 140 | . . 8 10 13 4 5 65 1 8 26 Melee 38 | . . . . . . . 11 1 8 18 Projectile 75 | . . 8 10 13 4 1 39 . . . AOE 6 | . . . . . . . 6 . . . Terrain Rammed . | . . . . . . . . . . . Walls Destroyed . | . . . . . . . . . . . Machines Disabled . | . . . . . . . . . . . Actions | -11 -10 -9 -8 -8 -8 -8 -6 -6 -6 -5 --------- Run | Yrd Mat Mat Mat Sto Rec Scr Fac Was Fac Fac Total 9771 | 110 836 448 176 878 1007 2330 1496 426 816 1248 Wait 1688 | . 369 64 . 228 251 496 118 108 26 28 Move 7120 | 84 402 326 144 605 684 1703 1065 304 729 1074 Hop 3 | . . . . . . . . . 3 . Pick Up 154 | 14 6 23 6 5 1 42 28 2 9 18 Fast Attach 38 | . . 1 . . . 4 17 . 4 12 Attach 87 | 7 1 5 3 . 1 12 32 2 6 18 Detach 33 | . . . . . 3 1 15 1 6 7 Swap 50 | . 2 4 2 2 7 7 15 4 1 6 Drop 131 | . 2 13 4 6 4 32 31 1 13 25 Fire 325 | 5 54 12 17 32 13 32 153 . . 7 Melee 99 | . . . . . . 1 22 4 19 53 Ram . | . . . . . . . . . . . Kick . | . . . . . . . . . . . Crush . | . . . . . . . . . . . Escape Stasis . | . . . . . . . . . . . Rewire 43 | . . . . . 43 . . . . . Trap . | . . . . . . . . . . . Miscellaneous . | . . . . . . . . . . . Route ------- -11/Scrapyard -10/Materials (discovered 4 exits: *Mat x3 / [*Min]) -9/Materials -8/Materials -8/Storage (discovered 2 exits: Fac / *Rec) -8/Recycling (discovered 2 exits: *Fac / *Scr) -8/Scraptown (discovered 2 exits: *Fac x2) -6/Factory (discovered 6 exits: *Fac x4 / *Low x2) -6/Waste -6/Factory (discovered 6 exits: *Fac x4 / Low x2) -5/Factory (discovered 5 exits: [*Fac] / Upp x2 / *Ext x2) History --------- Turn | Location | Event 3 | -11/Scrapyard | Discovered new exit (range 16) 153 | -11/Scrapyard | Entered Materials 300 | -10/Materials | Build established: Mutant 303 | -10/Materials | Discovered new exit (range 3) 536 | -10/Materials | Discovered new exit (range 15) 737 | -10/Materials | Discovered new exit (range 3) 968 | -10/Materials | Discovered new exit (range 5) 1067 | -10/Materials | Loaded intel: 8 trap records 1120 | -10/Materials | Learned location of Recycling (-8) 1165 | -10/Materials | Learned location of 1 exit from Recycling 1229 | -10/Materials | Learned location of Subcaves (-10) 1245 | -10/Materials | Learned Storage trap positions 1304 | -10/Materials | Learned Storage terminal intel 1335 | -10/Materials | Entered another Materials area 1335 | -9/Materials | Evolved 2 slots: Propulsion x1, Utility x1 1820 | -9/Materials | Discovered new exit (range 9) 1993 | -9/Materials | Entered another Materials area 1993 | -8/Materials | Evolved 2 slots: Propulsion x1, Utility x1 2086 | -8/Materials | Discovered new exit (range 15) 2278 | -8/Materials | Entered Storage 2279 | -8/Storage | Identified exit to Recycling 2280 | -8/Storage | Loaded intel: 3 trap records 2281 | -8/Storage | Loaded intel: 13 terminal locations 2575 | -8/Storage | Met 01-MTF 2852 | -8/Storage | Garrison activated, responded to threat 3084 | -8/Storage | Identified exit to Factory 3156 | -8/Storage | Learned location of Extension (-5) 3216 | -8/Storage | Learned Factory stockpile data 3245 | -8/Storage | Assisted by bots powering up and referring to "LRC-V3" 3376 | -8/Storage | Learned Storage trap positions 3455 | -8/Storage | Learned location of Zion (-7) 3526 | -8/Storage | Entered Recycling 3526 | -8/Recycling | Accompanied by 11 allies (01-MTF) 3527 | -8/Recycling | Identified exit to Factory 3528 | -8/Recycling | Identified exit to Scraptown 3542 | -8/Recycling | Build established: Commander-Mutant 4057 | -8/Recycling | Learned Storage emergency access door positions 4098 | -8/Recycling | Learned location of 3 exits from Factory 4131 | -8/Recycling | Learned 2 Lower Caves zone layouts 4156 | -8/Recycling | Learned location of 1 exit from Storage 4171 | -8/Recycling | Learned location of Storage (-8) 4191 | -8/Recycling | Learned location of 1 exit from Lower Caves 4305 | -8/Recycling | Learned 2 Lower Caves zone layouts 4542 | -8/Recycling | Scanned before Scraplab entrance 4575 | -8/Recycling | Found Prototype Energy Gun 4615 | -8/Recycling | Identified KN-7UR's Autopenetrator 4684 | -8/Recycling | Entered Scraplab 4870 | -8/Recycling | Entered Scraptown 4870 | -8/Scraptown | Accompanied by 19 allies 4870 | -8/Scraptown | System corruption cleaned by C-Scrubber 4921 | -8/Scraptown | Heard Great Nut preacher, LISTEN AND RECITE! 5085 | -8/Scraptown | Visited Science Testing Area 5175 | -8/Scraptown | Visited Supply Room 5189 | -8/Scraptown | Visited IN-MT5's Study 5199 | -8/Scraptown | Visited SPCMW 5220 | -8/Scraptown | Visited CPS Storage 5453 | -8/Scraptown | Visited Fellowship of the Rings 5470 | -8/Scraptown | Visited Cyclists 5490 | -8/Scraptown | Visited UFD Registry 5490 | -8/Scraptown | Registered with UFD as "Roughframe" 5522 | -8/Scraptown | Visited LU-1G1's Boring Crew 5542 | -8/Scraptown | Visited Scrapoid Research Area 5563 | -8/Scraptown | Visited Analyses Database 5592 | -8/Scraptown | Visited Research Penetration Think Tank 5622 | -8/Scraptown | Visited Scrapoid Pod Storage 5641 | -8/Scraptown | Visited Abandonware Association 5657 | -8/Scraptown | Learned abandonware demo "HACKBUD.EXE" 5657 | -8/Scraptown | Learned abandonware demo "ERRANTS.EXE" 5682 | -8/Scraptown | Visited Science Guys 5734 | -8/Scraptown | Visited DA-N13 Charitable Foundation 5747 | -8/Scraptown | Found DCF Scrap (28 items) 5776 | -8/Scraptown | Visited Junk Cannon Lab 5799 | -8/Scraptown | Visited Cartography Club 5837 | -8/Scraptown | Found Surveybot 17 Chip 5880 | -8/Scraptown | Learned location of Upper Caves (-5) 5880 | -8/Scraptown | Learned location of Quarantine (-3) 5880 | -8/Scraptown | Learned 8 Materials zone layouts 5880 | -8/Scraptown | Learned 24 Factory zone layouts 5880 | -8/Scraptown | Learned 8 Lower Caves zone layouts 5880 | -8/Scraptown | Learned 16 Lower Caves zone layouts 5880 | -8/Scraptown | Learned 8 Upper Caves zone layouts 5880 | -8/Scraptown | Learned 12 Upper Caves zone layouts 5880 | -8/Scraptown | Learned 20 Upper Caves zone layouts 5880 | -8/Scraptown | Learned 12 Proximity Caves zone layouts 5880 | -8/Scraptown | Learned location of 3 exits from Factory 5880 | -8/Scraptown | Learned location of 3 exits from Upper Caves 6005 | -8/Scraptown | Found Deep Structural Scanner 6229 | -8/Scraptown | Found Scrapoid Pod 6464 | -8/Scraptown | Found Prototype Special Weapon 7152 | -8/Scraptown | Met Optimus 7152 | -8/Scraptown | Accepted into 0bPrime 7552 | -8/Scraptown | Civil war broke out across Scraptown 7560 | -8/Scraptown | Found Prototype Special Weapon 7602 | -8/Scraptown | Lost 3 allies 7642 | -8/Scraptown | Found PL-3XN's Ring of Power 7675 | -8/Scraptown | Lost 6 allies 7803 | -8/Scraptown | Lost 3 allies 7877 | -8/Scraptown | Destroyed 10 combat bots 7878 | -8/Scraptown | Found System Spiker 7879 | -8/Scraptown | Identified LU-1G1's Laser Shovel 7889 | -8/Scraptown | Lost 7 allies 7922 | -8/Scraptown | Entered Factory 7922 | -6/Factory | Evolved 4 slots: Propulsion x1, Utility x3 7923 | -6/Factory | Identified exit to Factory 7923 | -6/Factory | Identified exit to Lower Caves 8118 | -6/Factory | Loaded intel: 8 recycling unit locations 8153 | -6/Factory | Build established: Derelict-Mutant 8220 | -6/Factory | Learned location of Protoforge (-3) 8261 | -6/Factory | Garrison activated, responded to threat 8468 | -6/Factory | Attached CPS modules to A-15 Conveyor. 8470 | -6/Factory | Garrison activated, responded to threat 8573 | -6/Factory | Build established: Mutant 9093 | -6/Factory | Identified Junk Cannon 9418 | -6/Factory | Attached CPS modules to A-15 Conveyor. 9501 | -6/Factory | Lost 5 parts (3n2u) 9927 | -6/Factory | Central database locked down 9937 | -6/Factory | Manually triggered Chute Trap 9937 | -6/Factory | Sucked down chute 9937 | -6/Factory | Entered Waste 9938 | -6/Waste | Identified exit to Factory 9962 | -6/Waste | Spotted C-40 Crusher 9962 | -6/Waste | Spotted C-40 Crusher 9965 | -6/Waste | Spotted C-40 Crusher 9978 | -6/Waste | Spotted C-40 Crusher 9980 | -6/Waste | Spotted C-40 Crusher 10001 | -6/Waste | Spotted C-40 Crusher 10019 | -6/Waste | Warlord forces began an assault 10040 | -6/Waste | Allies destroyed C-40 Crusher 10040 | -6/Waste | Allies destroyed C-40 Crusher 10049 | -6/Waste | Allies destroyed C-40 Crusher 10059 | -6/Waste | Allies destroyed C-40 Crusher 10061 | -6/Waste | Allies destroyed C-40 Crusher 10063 | -6/Waste | Allies destroyed C-40 Crusher 10159 | -6/Waste | Entered Factory 10159 | -6/Factory | Accompanied by 14 allies 10349 | -6/Factory | Loaded intel: 8 recycling unit locations 10377 | -6/Factory | Build established: Scout 10396 | -6/Factory | Garrison activated, responded to threat 10443 | -6/Factory | Entered another Factory area 10443 | -5/Factory | Evolved 2 slots: Power x1, Propulsion x1 10511 | -5/Factory | Discovered new exit (range 17) 10677 | -5/Factory | Fabricated Enh. Nova Cannon (x2) 10691 | -5/Factory | Attached CPS modules to A-15 Conveyor. 10776 | -5/Factory | Discovered new exit (range 22) 10787 | -5/Factory | Build established: Assassin 10809 | -5/Factory | Identified exit to Extension 10888 | -5/Factory | Loaded intel: 8 recycling unit locations 11041 | -5/Factory | Identified exit to Upper Caves 11514 | -5/Factory | Core integrity fell below 50% 11527 | -5/Factory | Core integrity fell below 20% 11562 | -5/Factory | Lost 16 parts (3p6n3u4w) 11566 | -5/Factory | Destroyed by Y-64 Sentinel with KE Penetrator Last Messages --------------- 11523_ Proton Missile Launcher destroyed. 11523_ Penetrated by Slug. 11524_ Dropped Imp. Heat Sink. 11526_ System corrupted: Matter fused (-7). 11526_ Penetrated by Slug. 11526_ Dropped Surveybot 17 Chip. 11527_ Dropped Stasis Canceller. 11527_ Dropped Lrg. Storage Unit. 11528_ Dropped Energy Well. 11528_ Penetrated by Slug. 11529_ Critical hit (Burn: +37). 11529_ Slug penetrates Wall. 11531_ Imp. Reaction Control System destroyed. 11531_ Slug penetrates Wall. 11549_ System corrupted: Energy discharge (-37). 11561_ Penetrated by Slug. 11564_ Acquired 70 matter. 11565_ P>EQUYRE&I#HR5 PY|&Q